fUST/lending_fUST_20251022
["ID","MTS","AMOUNT","RATE_DAILY","PERIOD"]
[392021133,1761105272179,150.0,0.00022825,2]
[392021134,1761105272577,150.0,0.00023738,2]
[392021135,1761105272948,252.95916688,0.00023989,2]
[392021136,1761105272975,214.47530955,0.00023989,2]
[392021137,1761105273000,285.0064076,0.00023989,2]
[392021138,1761105273028,485.27738209,0.00023989,2]
[392021139,1761105273055,500.0,0.00023989,2]
[392021140,1761105273081,226.23461202,0.00023989,2]
[392021141,1761105273109,306.75431206,0.00023989,2]
[392021142,1761105273132,193.24568794,0.00023989,2]
[392021143,1761105273158,500.0,0.00023989,2]
[392021144,1761105273189,456.97307727,0.00023989,2]
[392021145,1761105273216,500.0,0.00023989,2]
[392021146,1761105273246,500.0,0.00023989,2]
[392021147,1761105273273,500.0,0.00023989,2]
[392021148,1761105273305,500.0,0.00023989,2]
[392021149,1761105273334,500.0,0.00023989,2]
[392021150,1761105273361,500.0,0.00023989,2]
[392021151,1761105273400,500.0,0.00023989,2]
[392021152,1761105273426,500.0,0.00023989,2]
[392021153,1761105273454,500.0,0.00023989,2]
[392021154,1761105273481,500.0,0.00023989,2]
[392021155,1761105273508,500.0,0.00023989,2]
[392021156,1761105273537,500.0,0.00023989,2]
[392021157,1761105273572,500.0,0.00023989,2]
[392021158,1761105273598,594.77229315,0.00023989,2]
[392021159,1761105273628,500.0,0.00023989,2]
[392021160,1761105273658,500.0,0.00023989,2]
[392021161,1761105273685,500.0,0.00023989,2]
[392021162,1761105273712,255.01894164,0.00023989,2]
[392021163,1761105273735,244.98105836,0.00023989,2]
[392021164,1761105273762,500.0,0.00023989,2]
[392021165,1761105273793,500.0,0.00023989,2]
[392021166,1761105273820,500.0,0.00023989,2]
[392021167,1761105273847,500.0,0.00023989,2]
[392021168,1761105273874,500.0,0.00023989,2]
[392021169,1761105274092,500.0,0.00023989,2]
[392021170,1761105274121,500.0,0.00023989,2]
[392021171,1761105280278,820.08,0.0002398,10]
[392021172,1761105291358,683.4,0.0002398,10]
[392021173,1761105301582,300.0,0.00023989,2]
[392021174,1761105302450,300.0,0.00023989,2]
[392021175,1761105302482,569.5,0.0002398,10]
[392021176,1761105302549,300.0,0.00023989,2]
[392021177,1761105303179,300.0,0.00023989,2]
[392021178,1761105303212,1200.0,0.00023989,2]
[392021179,1761105303250,300.0,0.00023989,2]
[392021180,1761105308811,414.0,0.00034864,30]
[392021181,1761105309559,429.318,0.00034864,30]
[392021182,1761105310226,445.202766,0.00034864,30]
[392021183,1761105310652,500.0,0.00034864,30]
[392021184,1761105310869,461.67526834,0.00034864,30]
[392021185,1761105311273,500.0,0.00034864,30]
[392021186,1761105311505,478.75725327,0.00034864,30]
[392021187,1761105311942,500.0,0.00034864,30]
[392021188,1761105312107,496.47127164,0.00034864,30]
[392021189,1761105312587,500.0,0.00034864,30]
[392021190,1761105312768,514.84070869,0.00034864,30]
[392021191,1761105313200,500.0,0.00034864,30]
[392021192,1761105313427,533.88981491,0.00034864,30]
[392021193,1761105313856,474.59,0.0002398,10]
[392021194,1761105313895,500.0,0.00034864,30]
[392021195,1761105314119,553.64373807,0.00034864,30]
[392021196,1761105314703,500.0,0.00034864,30]
[392021197,1761105314737,574.12855637,0.00034864,30]
[392021198,1761105315423,595.37131296,0.00034864,30]
[392021199,1761105315480,160.0,0.00034864,30]
[392021200,1761105315741,500.0,0.00034864,30]
[392021201,1761105316091,617.40005154,0.00034864,30]
[392021202,1761105316131,165.92,0.00034864,30]
[392021203,1761105316451,500.0,0.00034864,30]
[392021204,1761105316744,640.24385345,0.00034864,30]
[392021205,1761105316781,172.05904,0.00034864,30]
[392021206,1761105317080,500.0,0.00034864,30]
[392021207,1761105317345,663.93287602,0.00034864,30]
[392021208,1761105317388,178.42522448,0.00034864,30]
[392021209,1761105317803,500.0,0.00034864,30]
[392021210,1761105317983,688.49839244,0.00034864,30]
[392021211,1761105318028,185.02695779,0.00034864,30]
[392021212,1761105318416,500.0,0.00034864,30]
[392021213,1761105318587,688.49839244,0.00034864,30]
[392021214,1761105318630,191.87295522,0.00034864,30]
[392021215,1761105319095,500.0,0.00034864,30]
[392021216,1761105319750,198.97225457,0.00034864,30]
[392021217,1761105320422,206.33422799,0.00034864,30]
[392021218,1761105321049,213.96859442,0.00034864,30]
[392021219,1761105321711,221.88543242,0.00034864,30]
[392021220,1761105322336,230.09519341,0.00034864,30]
[392021221,1761105322974,230.09519341,0.00034864,30]
[392021222,1761105326391,1007.45894164,0.0002398,10]
[392021223,1761105326416,731.21105836,0.0002398,10]
[392021224,1761105327858,500.0,0.00023989,2]
[392021225,1761105327887,500.0,0.00023989,2]
[392021226,1761105327918,500.0,0.00023989,2]
[392021227,1761105327949,530.97153324,0.00023989,2]
[392021228,1761105327977,171.6492525,0.00023989,2]
[392021229,1761105328004,500.0,0.00023989,2]
[392021230,1761105328040,500.0,0.00023989,2]
[392021231,1761105328074,500.0,0.00023989,2]
[392021232,1761105328105,500.0,0.00023989,2]
[392021233,1761105328131,500.0,0.00023989,2]
[392021234,1761105328158,500.0,0.00023989,2]
[392021235,1761105328190,500.0,0.00023989,2]
[392021236,1761105328223,500.0,0.00023989,2]
[392021237,1761105328249,500.0,0.00023989,2]
[392021238,1761105328277,548.35248809,0.00023989,2]
[392021239,1761105328304,500.0,0.00023989,2]
[392021240,1761105328334,500.0,0.00023989,2]
[392021241,1761105328362,282.0,0.00023989,2]
[392021242,1761105330873,500.0,0.00023989,2]
[392021243,1761105330899,235.82566781,0.00023989,2]
[392021244,1761105330923,17.92608051,0.00023989,2]
[392021245,1761105330954,500.0,0.00023989,2]
[392021246,1761105330988,500.0,0.00023989,2]
[392021247,1761105331035,500.0,0.00023989,2]
[392021248,1761105331092,500.0,0.00023989,2]
[392021249,1761105333361,183.41899847,0.00023989,2]
[392021250,1761105333414,500.0,0.00023989,2]
[392021251,1761105333472,417.24897058,0.00023989,2]
[392021252,1761105333601,500.0,0.00023989,2]
[392021253,1761105337450,1448.9,0.0002398,10]
[392021254,1761105342721,150.0,0.00019241,2]
[392021255,1761105343131,150.0,0.00020157,2]
[392021256,1761105343553,150.0,0.00021073,2]
[392021257,1761105343973,150.0,0.00021989,2]
[392021258,1761105344377,150.0,0.00022906,2]
[392021259,1761105344794,150.0,0.00023822,2]
[392021260,1761105345815,314.61141829,0.00023989,2]
[392021261,1761105345966,220.0,0.00023989,2]
[392021262,1761105346091,453.29003117,0.00023989,2]
[392021263,1761105347785,2853.14,0.0002398,10]
[392021264,1761105349112,191.47450098,0.00023989,2]
[392021265,1761105349138,148.49485067,0.00023989,2]
[392021266,1761105358969,2377.62,0.0002398,10]
[392021267,1761105362837,300.0,0.00023989,2]
[392021268,1761105370373,1981.35,0.0002398,10]
[392021269,1761105373236,2139.91131211,0.000239,2]
[392021270,1761105381846,1651.12,0.0002398,10]
[392021271,1761105392823,1375.94,0.0002398,10]
[392021272,1761105403398,25.57383722,0.0002398,10]
[392021273,1761105403420,1121.03616278,0.0002398,10]
[392021274,1761105406983,153.0,0.00021918,2]
[392021275,1761105411331,150.0,0.00019159,2]
[392021276,1761105411779,150.0,0.00020072,2]
[392021277,1761105412243,150.0,0.00020984,2]
[392021278,1761105412662,150.0,0.00021896,2]
[392021279,1761105412737,153.0,0.00021918,2]
[392021280,1761105413968,153.0,0.00021918,2]
[392021281,1761105414882,955.51,0.0002398,10]
[392021282,1761105416690,150.0,0.00022809,2]
[392021283,1761105424425,300.0,0.00023989,2]
[392021285,1761105426335,796.26,0.0002398,10]
[392021286,1761105437337,663.55,0.0002398,10]
[392021287,1761105448693,552.96,0.0002398,10]
[392021288,1761105457563,1200.0,0.00023989,2]
[392021289,1761105460010,460.8,0.0002398,10]
[392021290,1761105468181,153.0,0.00021918,2]
[392021291,1761105470495,384.0,0.0002398,10]
[392021292,1761105475252,153.0,0.00021918,2]
[392021293,1761105475531,153.0,0.00021918,2]
[392021294,1761105480837,320.0,0.0002398,10]
[392021295,1761105482829,300.0,0.00023989,2]
[392021296,1761105491747,266.67,0.0002398,10]
[392021297,1761105502668,222.22,0.0002398,10]
[392021298,1761105514065,185.18,0.0002398,10]
[392021299,1761105524794,154.32,0.0002398,10]
[392021300,1761105528284,153.0,0.00021918,2]
[392021301,1761105536211,771.63,0.0002398,10]
[392021302,1761105537174,153.0,0.00021918,2]
[392021303,1761105546552,240.3551693,0.00023231,2]
[392021304,1761105547410,300.0,0.00023989,2]
[392021305,1761105582450,8535.0248307,0.000239,2]
[392021306,1761105582471,10000.01,0.000239,2]
[392021307,1761105582492,6646.81664842,0.000239,2]
[392021308,1761105598070,153.0,0.00021918,2]
[392021309,1761105602521,166.2944247,0.0002389,2]
[392021310,1761105602549,300.0,0.00023989,2]
[392021311,1761105602584,300.0,0.00023989,2]
[392021312,1761105602610,300.0,0.00023989,2]
[392021313,1761105602721,300.0,0.00023989,2]
[392021314,1761105602880,1200.0,0.00023989,2]
[392021315,1761105604085,300.0,0.00023989,2]
[392021316,1761105607717,178.58,0.0002398,2]
[392021317,1761105613529,2062.21882141,0.0002389,2]
[392021318,1761105635518,226.05823675,0.00030136,120]
[392021319,1761105645430,612.65613772,0.00023989,2]
[392021320,1761105653756,300.0,0.00030136,120]
[392021321,1761105656017,153.0,0.00021918,2]
[392021322,1761105663251,300.0,0.00023989,2]
[392021323,1761105684758,3555.8702488,0.00023251,2]
[392021335,1761105723225,118.39036737,0.00023989,2]
[392021336,1761105723248,181.60963263,0.00023989,2]
[392021337,1761105730385,287.47124883,0.00023989,2]
[392021338,1761105742421,1085.193303,0.00013699,2]
[392021339,1761105742627,1085.193303,0.00020187,2]
[392021341,1761105757698,1200.0,0.00023989,2]
[392021342,1761105760719,196.0,0.000157,2]
[392021343,1761105760794,196.0,0.0001582,2]
[392021344,1761105760861,196.0,0.0001594,2]
[392021345,1761105760934,196.0,0.0001606,2]
[392021346,1761105761010,196.0,0.0001618,2]
[392021347,1761105761071,196.0,0.000163,2]
[392021348,1761105761145,196.0,0.0001642,2]
[392021349,1761105761220,196.0,0.0001654,2]
[392021350,1761105761280,196.0,0.0001666,2]
[392021351,1761105761378,196.0,0.0001678,2]
[392021352,1761105761473,196.0,0.000169,2]
[392021353,1761105761532,196.0,0.0001702,2]
[392021354,1761105761596,196.0,0.0001714,2]
[392021355,1761105761659,196.0,0.0001726,2]
[392021356,1761105761725,196.0,0.0001738,2]
[392021357,1761105761792,196.0,0.000175,2]
[392021358,1761105761869,196.0,0.0001762,2]
[392021359,1761105761961,196.0,0.0001774,2]
[392021360,1761105762025,196.0,0.0001786,2]
[392021361,1761105762088,196.0,0.0001798,2]
[392021362,1761105762154,366.14272593,0.000181,2]
[392021363,1761105778094,536.32946209,0.0002399,2]
[392021364,1761105783907,300.0,0.00023989,2]
[392021365,1761105803245,150.0,0.00019237,2]
[392021366,1761105803642,150.0,0.00020153,2]
[392021367,1761105804076,150.0,0.00021069,2]
[392021368,1761105804483,150.0,0.00021985,2]
[392021369,1761105804894,150.0,0.00022902,2]
[392021370,1761105805340,150.0,0.00023818,2]
[392021372,1761105811810,300.0,0.000181,2]
[392021373,1761105823041,300.0,0.000181,2]
[392021391,1761105842857,300.0,0.00023989,2]
[392021392,1761105860200,1804.44146876,0.0002389,2]
[392021393,1761105865835,73.09634322,0.00023238,2]
[392021394,1761105865859,4443.30278138,0.00023238,2]
[392021395,1761105871183,150.0,0.00019247,2]
[392021396,1761105871600,150.0,0.00020164,2]
[392021397,1761105871633,300.0,0.000181,2]
[392021398,1761105872060,150.0,0.0002108,2]
[392021399,1761105872460,150.0,0.00021997,2]
[392021400,1761105872960,1818.11649172,0.0002399,2]
[392021401,1761105880591,196.0,0.000157,2]
[392021402,1761105880816,196.0,0.00016043,2]
[392021403,1761105880845,196.0,0.00016386,2]
[392021404,1761105880872,196.0,0.00016729,2]
[392021405,1761105880901,196.0,0.00017071,2]
[392021406,1761105880927,196.0,0.00017414,2]
[392021407,1761105880978,196.0,0.00017757,2]
[392021408,1761105881036,360.7424032,0.000181,2]
[392021409,1761105883621,300.0,0.000181,2]
[392021410,1761105894586,300.0,0.000181,2]
[392021411,1761105896629,505.8483237,0.0002399,2]
[392021412,1761105896653,2676.03518458,0.0002399,2]
[392021413,1761105901726,213.0,0.00023989,2]
[392021414,1761105902404,300.0,0.00023989,2]
[392021415,1761105902523,300.0,0.00023989,2]
[392021416,1761105902957,300.0,0.00023989,2]
[392021417,1761105904161,1200.0,0.00023989,2]
[392021418,1761105904473,500.0,0.00023973,2]
[392021419,1761105905909,300.0,0.000181,2]
[392021420,1761105912733,297.0,0.00023973,2]
[392021421,1761105916395,839.866076,0.00023988,2]
[392021422,1761105917073,300.0,0.000181,2]
[392021423,1761105918919,510.41564349,0.00023973,2]
[392021426,1761105919545,4939.72828051,0.0002399,2]
[392021427,1761105919567,60.27171949,0.0002399,2]
[392021429,1761105922553,515.80801551,0.00023973,2]
[392021430,1761105923761,506.12589289,0.00023973,2]
[392021431,1761105924113,500.0,0.00023973,2]
[392021432,1761105930067,500.0,0.00023973,2]
[392021433,1761105931319,300.0,0.000181,2]
[392021434,1761105933341,500.0,0.00023973,2]
[392021435,1761105934900,5000.0,0.0002399,2]
[392021436,1761105935793,505.53357132,0.00023973,2]
[392021437,1761105936610,150.0,0.00019252,2]
[392021438,1761105937013,150.0,0.00020168,2]
[392021439,1761105937415,150.0,0.00021085,2]
[392021440,1761105937828,150.0,0.00022002,2]
[392021441,1761105938801,161.33,0.00022919,2]
[392021442,1761105939266,193.6,0.00023835,2]
[392021443,1761105942712,657.34080079,0.0002399,2]
[392021444,1761105942733,1754.97966127,0.0002399,2]
[392021448,1761105958435,5000.0,0.0002399,2]
[392021451,1761105963058,300.0,0.00023989,2]
[392021452,1761105966651,154.23345965,0.00023989,2]
[392021454,1761105981475,2790.79687908,0.0002399,2]
[392021455,1761105981498,2209.20312092,0.0002399,2]
[392021456,1761105990036,504.72736898,0.00023973,2]
[392021457,1761105990784,502.06373491,0.00023973,2]
[392021458,1761106001095,497.14301457,0.00023973,2]
[392021459,1761106003908,5000.0,0.0002399,2]
[392021460,1761106009284,150.0,0.00019619,2]
[392021461,1761106009711,150.0,0.00020554,2]
[392021462,1761106010148,150.0,0.00021488,2]
[392021463,1761106010589,150.0,0.00022422,2]
[392021464,1761106011029,185.83,0.00023356,2]
[392021465,1761106012943,153.0,0.00021918,2]
[392021466,1761106022631,300.0,0.00023989,2]
[392021467,1761106026272,48.04276062,0.0002399,2]
[392021468,1761106026295,4951.95723938,0.0002399,2]
[392021469,1761106033825,294.53,0.0002398,10]
[392021470,1761106045203,245.45,0.0002398,10]
[392021471,1761106048852,4508.07276062,0.0002399,2]
[392021472,1761106075517,153.0,0.00021918,2]
[392021473,1761106079797,195.73,0.00015105,20]
[392021474,1761106087982,150.0,0.00019499,2]
[392021475,1761106088415,150.0,0.00020427,2]
[392021476,1761106088826,150.0,0.00021356,2]
[392021477,1761106089239,150.0,0.00022284,2]
[392021478,1761106090138,150.0,0.00023213,2]
[392021479,1761106111357,1578.88628513,0.0002389,2]
[392021480,1761106120636,196.0,0.000157,2]
[392021481,1761106120698,196.0,0.00015783,2]
[392021482,1761106120776,196.0,0.00015866,2]
[392021483,1761106120839,196.0,0.00015948,2]
[392021484,1761106120907,196.0,0.00016031,2]
[392021485,1761106121007,196.0,0.00016114,2]
[392021486,1761106121082,196.0,0.00016197,2]
[392021487,1761106121174,196.0,0.00016279,2]
[392021488,1761106121238,196.0,0.00016362,2]
[392021489,1761106121429,196.0,0.00016445,2]
[392021490,1761106121496,196.0,0.00016528,2]
[392021491,1761106121523,196.0,0.0001661,2]
[392021492,1761106121549,196.0,0.00016693,2]
[392021493,1761106121578,196.0,0.00016776,2]
[392021494,1761106121639,196.0,0.00016859,2]
[392021495,1761106121712,196.0,0.00016941,2]
[392021496,1761106121776,196.0,0.00017024,2]
[392021497,1761106121848,196.0,0.00017107,2]
[392021498,1761106121915,196.0,0.0001719,2]
[392021499,1761106121989,196.0,0.00017272,2]
[392021500,1761106122063,196.0,0.00017355,2]
[392021501,1761106122134,196.0,0.00017438,2]
[392021502,1761106122204,196.0,0.00017521,2]
[392021503,1761106122269,196.0,0.00017603,2]
[392021504,1761106122332,196.0,0.00017686,2]
[392021505,1761106122408,196.0,0.00017769,2]
[392021506,1761106122480,196.0,0.00017852,2]
[392021507,1761106122559,196.0,0.00017934,2]
[392021508,1761106122620,196.0,0.00018017,2]
[392021509,1761106122680,361.03712016,0.000181,2]
[392021510,1761106133931,153.0,0.00021918,2]
[392021511,1761106159010,150.0,0.00019129,2]
[392021512,1761106159462,150.0,0.0002004,2]
[392021513,1761106159863,150.0,0.00020951,2]
[392021514,1761106160439,150.0,0.00021862,2]
[392021515,1761106162572,150.0,0.00022773,2]
[392021516,1761106162986,150.0,0.00023684,2]
[392021517,1761106209803,7950.0,0.00030137,120]
[392021518,1761106230395,150.0,0.00019121,2]
[392021519,1761106230786,74.35659471,0.00020031,2]
[392021520,1761106230816,75.64340529,0.00020031,2]
[392021521,1761106231200,150.0,0.00020942,2]
[392021542,1761106231609,150.0,0.00021852,2]
[392021653,1761106237626,-778.53,0.0002398,10]
[392021654,1761106237638,-300.29042323,0.00023985,2]
[392021655,1761106237650,-68.27742885,0.00023985,2]
[392021656,1761106237662,-1157.0,0.00023989,2]
[392021657,1761106237673,-376.7346618,0.00023989,2]
[392021658,1761106237684,-300.0,0.00023989,2]
[392021659,1761106237695,-1200.0,0.00023989,2]
[392021660,1761106237706,-300.0,0.00023989,2]
[392021661,1761106237717,-491.92723938,0.0002399,2]
[392021662,1761106237729,-100000.0,0.0002399,2]
[392021663,1761106237741,-662.93759421,0.0002399,2]
[392021664,1761106237752,-953.0,0.00024,2]
[392021665,1761106237762,-4506.47267655,0.00024,2]
[392021666,1761106237774,-507.01104168,0.00024173,2]
[392021667,1761106237784,-520.32813675,0.00024173,2]
[392021668,1761106237793,-500.0,0.00024173,2]
[392021669,1761106237803,-500.0,0.00024173,2]
[392021670,1761106237813,-500.0,0.00024173,2]
[392021671,1761106237824,-150.50172536,0.00024173,2]
[392021672,1761106237835,-186.6250689,0.00024183,2]
[392021673,1761106237845,-249.76071005,0.00024183,2]
[392021674,1761106237856,-3540.33702813,0.00024184,2]
[392021675,1761106237868,-50000.0,0.00024184,2]
[392021676,1761106237879,-1102.7810479,0.00024236,2]
[392021677,1761106237889,-517.44824789,0.00024239,2]
[392021678,1761106237901,-403.14601822,0.00024243,2]
[392021679,1761106237912,-197.27366416,0.00024246,2]
[392021680,1761106237924,-710.21,0.00024259,3]
[392021681,1761106237935,-355.1,0.00024259,3]
[392021682,1761106237946,-177.55,0.00024259,3]
[392021683,1761106237958,-532.69,0.00024259,3]
[392021684,1761106237969,-151.0,0.00024269,2]
[392021685,1761106237980,-151.0,0.00024269,2]
[392021686,1761106237992,-151.0,0.00024269,2]
[392021687,1761106238006,-151.0,0.00024269,2]
[392021688,1761106238017,-151.0,0.00024269,2]
[392021689,1761106238027,-221.60135417,0.00024269,2]
[392021690,1761106238038,-504.28281437,0.00024273,2]
[392021691,1761106238050,-506.1230814,0.00024273,2]
[392021692,1761106238061,-500.0,0.00024273,2]
[392021693,1761106238072,-501.21083915,0.00024273,2]
[392021694,1761106238085,-500.0,0.00024273,2]
[392021695,1761106238097,-500.0,0.00024273,2]
[392021696,1761106238109,-500.58622512,0.00024273,2]
[392021697,1761106238122,-500.0,0.00024273,2]
[392021698,1761106238134,-500.0,0.00024273,2]
[392021699,1761106238145,-502.46996771,0.00024273,2]
[392021700,1761106238156,-500.0,0.00024273,2]
[392021701,1761106238166,-500.0,0.00024273,2]
[392021702,1761106238176,-510.6964162,0.00024273,2]
[392021703,1761106238187,-370000.0,0.00024284,2]
[392021704,1761106238198,-500.0,0.00024284,5]
[392021705,1761106238209,-13353.48,0.000243,7]
[392021706,1761106238222,-440.04620346,0.00024336,2]
[392021707,1761106238232,-456.73,0.00024369,20]
[392021708,1761106238244,-1000.0,0.00024395,2]
[392021709,1761106238255,-1000.0,0.00024395,2]
[392021710,1761106238266,-1000.0,0.00024395,2]
[392021711,1761106238276,-1000.0,0.00024395,2]
[392021712,1761106238287,-1000.0,0.00024395,2]
[392021713,1761106238297,-976.25709614,0.00024395,2]
[392021714,1761106238309,-300.0,0.00024469,20]
[392021715,1761106238320,-300.0,0.00024469,20]
[392021716,1761106238331,-300.0,0.00024469,20]
[392021717,1761106238342,-300.0,0.00024469,20]
[392021718,1761106238353,-300.0,0.00024469,20]
[392021719,1761106238363,-300.0,0.00024469,20]
[392021720,1761106238374,-1000.0,0.00024521,2]
[392021721,1761106238384,-505.11398729,0.00024721,2]
[392021722,1761106238395,-511.55786987,0.00024721,2]
[392021723,1761106238407,-600.0,0.00024767,20]
[392021724,1761106238418,-506.37108345,0.000248,2]
[392021725,1761106238429,-196.34218594,0.00024821,2]
[392021726,1761106238443,-597.77637791,0.00024821,2]
[392021727,1761106238453,-1000.0,0.00024821,2]
[392021728,1761106238464,-1000.0,0.00024821,2]
[392021729,1761106238474,-502.14047218,0.00024821,2]
[392021730,1761106238485,-1002.70253193,0.00024821,2]
[392021731,1761106238496,-1000.0,0.00024821,2]
[392021732,1761106238507,-500.0,0.00024832,5]
[392021733,1761106238518,-502.66916721,0.00024873,2]
[392021734,1761106238530,-503.10569259,0.00024873,2]
[392021735,1761106238541,-248.97515511,0.00024885,2]
[392021736,1761106238552,-526.382377,0.0002489,28]
[392021737,1761106238564,-281.036995,0.0002489,28]
[392021738,1761106238574,-355887.968469,0.000249,2]
[392021739,1761106238585,-160.0,0.00024909,2]
[392021740,1761106238596,-434.91006546,0.00024985,2]
[392021741,1761106238612,-526.382377,0.00025043,2]
[392021742,1761106238626,-281.036995,0.00025043,2]
[392021743,1761106238636,-531.31822136,0.00025068,2]
[392021744,1761106238647,-1960.49964072,0.00025113,2]
[392021745,1761106238658,-919.0,0.00025132,2]
[392021746,1761106238669,-919.0,0.0002534,2]
[392021747,1761106238679,-4033.34,0.0002536,2]
[392021748,1761106238690,-919.0,0.00025361,2]
[392021749,1761106238701,-1500.0,0.00025368,2]
[392021750,1761106238711,-581.98124679,0.00025368,2]
[392021751,1761106238721,-1500.0,0.00025368,2]
[392021752,1761106238732,-500.0,0.00025379,5]
[392021753,1761106238742,-919.90799625,0.0002541,2]
[392021754,1761106238752,-260.0,0.00025457,2]
[392021755,1761106238763,-1578.88628513,0.00025459,2]
[392021756,1761106238773,-1420.42,0.00025629,3]
[392021757,1761106238784,-710.2,0.00025629,3]
[392021758,1761106238795,-355.1,0.00025629,3]
[392021759,1761106238805,-919.0,0.0002563,2]
[392021760,1761106238815,-920.0,0.0002567,7]
[392021761,1761106238825,-13353.48,0.000257,7]
[392021762,1761106238835,-919.0,0.00025907,2]
[392021763,1761106238846,-2000.0,0.00025916,2]
[392021764,1761106238856,-2000.0,0.00025916,2]
[392021765,1761106238867,-889.04618599,0.00025921,2]
[392021766,1761106238877,-500.0,0.00025927,5]
[392021767,1761106238894,-501.25227883,0.00025985,2]
[392021768,1761106238904,-3063.28068862,0.0002599,2]
[392021769,1761106238914,-360.0,0.00026005,2]
[392021770,1761106238924,-354.7375029,0.00026008,2]
[392021771,1761106238934,-420.0,0.00026015,2]
[392021772,1761106238944,-1680.0,0.00026134,2]
[392021773,1761106239113,-920.0,0.00026143,2]
[392021774,1761106239130,-919.0,0.00026173,2]
[392021775,1761106239144,-919.0,0.00026262,2]
[392021776,1761106239154,-920.0,0.00026274,2]
[392021777,1761106239164,-919.0,0.00026385,2]
[392021778,1761106239175,-919.0,0.00026397,2]
[392021779,1761106239185,-2500.0,0.00026464,2]
[392021780,1761106239195,-2500.0,0.00026464,2]
[392021781,1761106239205,-500.0,0.00026475,5]
[392021783,1761106239216,-919.0,0.00026484,2]
[392021784,1761106239225,-460.0,0.00026553,2]
[392021785,1761106239237,-1085.193303,0.00026676,2]
[392021786,1761106239246,-526.382377,0.0002676,28]
[392021787,1761106239255,-281.036995,0.0002676,28]
[392021788,1761106239265,-919.0,0.00026787,2]
[392021790,1761106239275,-919.0,0.0002682,7]
[392021792,1761106239284,-526.382377,0.000269,20]
[392021794,1761106239294,-281.036995,0.000269,20]
[392021795,1761106239303,-567.59449221,0.00026985,2]
[392021796,1761106239313,-919.0,0.00026998,2]
[392021797,1761106239324,-935.86530428,0.00027012,2]
[392021798,1761106239333,-3000.0,0.00027012,2]
[392021799,1761106239343,-500.0,0.00027023,5]
[392021800,1761106239352,-1578.88628513,0.00027027,2]
[392021801,1761106239362,-919.0,0.00027069,2]
[392021802,1761106239372,-919.0,0.00027093,2]
[392021804,1761106239381,-919.0,0.00027099,2]
[392021805,1761106239391,-560.0,0.000271,2]
[392021806,1761106239401,-920.0,0.00027184,2]
[392021807,1761106239411,-720.0,0.00027244,30]